bitfinex/quotes_ETHUSD_20241001
["timestamp","ask_amount","ask_price","bid_price","bid_amount"]
[1727805674113,2.5331,2513.3,2513.1,3.97906]
[1727805674114,1.6526,2513.3,2513.1,3.97906]
[1727805674457,1.6526,2513.3,2513.0,3.97929]
[1727805675035,1.6526,2513.3,2513.1,3.97912]
[1727805675416,1.6526,2513.3,2513.2,3.97899]
[1727805675968,1.6526,2513.3,2513.0,3.97925]
[1727805676124,1.6526,2513.3,2512.7,0.397966]
[1727805676325,20.4505,2513.2,2512.8,3.97954]
[1727805676873,27.435638,2513.2,2512.6,3.97983]
[1727805677051,3.97916,2513.1,2512.4,3.98013]
[1727805677237,3.97971,2512.8,2512.3,3.9804]
[1727805677449,3.97971,2512.8,2512.1,3.98063]
[1727805677759,23.50957,2512.9,2512.2,3.98057]
[1727805677962,23.50957,2512.9,2512.0,0.1414]
[1727805677963,0.8972,2512.6,2512.0,4.12217]
[1727805678169,0.8972,2512.6,2512.0,3.98077]
[1727805678326,0.8972,2512.6,2512.2,3.98055]
[1727805678764,0.8972,2512.6,2512.2,3.98048]
[1727805678934,0.8972,2512.6,2512.3,3.98041]
[1727805679137,19.53,2512.8,2512.5,3.98008]
[1727805679346,19.53,2512.8,2512.3,4.776409]
[1727805679546,19.53,2512.8,2512.5,3.98008]
[1727805679888,19.53,2512.8,2512.5,3.98006]
[1727805680051,19.53,2512.8,2512.5,7.96012]
[1727805680377,19.53,2512.8,2512.2,0.1414]
[1727805680378,19.53,2512.8,2512.6,3.97984]
[1727805680883,20.4078,2513.2,2512.9,3.97946]
[1727805681058,1.6526,2513.3,2513.2,3.97899]
[1727805681439,1.6526,2513.3,2513.0,3.9792]
[1727805681679,1.6526,2513.3,2512.8,0.1414]
[1727805681891,1.6526,2513.3,2512.8,0.553508]
[1727805682189,1.6526,2513.3,2513.2,3.97899]
[1727805682394,1.6526,2513.3,2513.2,6.97899]
[1727805682536,1.6526,2513.3,2513.2,7.058561]
[1727805683183,1.6526,2513.3,2513.1,3.97905]
[1727805683486,1.6526,2513.3,2513.0,3.97922]
[1727805683651,1.6526,2513.3,2513.1,0.397922]
[1727805683851,1.6526,2513.3,2513.1,4.377052]
[1727805684450,1.6526,2513.3,2513.1,4.376952]
[1727805685269,1.6526,2513.3,2513.1,0.397922]
[1727805685451,1.6526,2513.3,2513.1,4.376942]
[1727805685657,1.6526,2513.3,2513.1,3.97902]
[1727805686250,1.6526,2513.3,2513.1,7.95806]
[1727805686468,1.6526,2513.3,2513.2,3.97899]
[1727805686671,1.6526,2513.3,2513.1,3.97913]
[1727805686870,1.6526,2513.3,2512.9,3.97936]
[1727805687040,1.6526,2513.3,2512.9,0.4532868]
[1727805687244,1.6526,2513.3,2513.0,3.97927]
[1727805687470,1.6526,2513.3,2513.0,3.97918]
[1727805688586,2.5258,2513.3,2512.8,3.97953]
[1727805688791,22.0558,2513.3,2512.8,3.97953]
[1727805688946,25.057128,2513.3,2512.8,3.97953]
[1727805689457,25.057128,2513.3,2512.7,3.97977]
[1727805689797,0.8732,2513.0,2512.3,3.98032]
[1727805690089,0.8732,2513.0,2512.1,3.98063]
[1727805690090,3.97964,2512.8,2512.1,3.98062]
[1727805690288,3.97956,2512.9,2512.1,0.412202]
[1727805690289,3.98005,2512.6,2512.1,0.412202]
[1727805690501,4.85301,2512.7,2511.9,4.12233]
[1727805690502,0.8732,2512.7,2512.2,3.98049]
[1727805690785,0.8732,2512.7,2512.5,3.97994]
[1727805691026,0.8732,2512.7,2512.4,3.98025]
[1727805691230,0.8732,2512.7,2512.4,3.98017]
[1727805691381,0.8732,2512.7,2511.9,4.12237]
[1727805691382,4.85306,2512.7,2512.2,3.98056]
[1727805691590,0.8732,2512.7,2511.9,0.1414]
[1727805691786,0.8732,2512.7,2512.6,3.97994]
[1727805691985,19.53,2512.9,2512.5,3.97995]
[1727805692227,19.53,2512.9,2512.6,3.97984]
[1727805692435,0.8713,2513.0,2512.6,3.97984]
[1727805692884,0.8713,2513.0,2512.7,3.97976]
[1727805693085,0.8713,2513.0,2512.0,6.98086]
[1727805693086,0.8713,2513.0,2512.8,3.97961]
[1727805693316,2.604,2513.3,2512.8,3.97961]
[1727805693517,2.604,2513.3,2512.9,3.97944]
[1727805693703,2.604,2513.3,2513.0,3.97929]
[1727805694007,2.604,2513.3,2512.9,3.97946]
[1727805694213,2.604,2513.3,2513.0,3.97921]
[1727805694409,2.604,2513.3,2512.8,4.377481]
[1727805694620,2.604,2513.3,2513.0,3.9793]
[1727805694820,2.604,2513.3,2512.8,4.377461]
[1727805695231,2.604,2513.3,2512.9,3.97943]
[1727805695633,6.58284,2513.3,2512.8,3.9795]
[1727805695801,3.979,2513.2,2512.8,3.9795]
[1727805696006,3.979,2513.2,2512.7,3.97977]
[1727805696447,2.604,2513.3,2512.4,7.96031]
[1727805696738,3.97938,2513.0,2512.5,3.97999]
[1727805696944,3.97938,2513.0,2512.4,3.98015]
[1727805697146,3.97971,2512.8,2512.3,3.98033]
[1727805697301,27.48945,2512.8,2512.3,3.98033]
[1727805697499,3.97979,2512.7,2512.2,3.98045]
[1727805697700,19.53,2512.8,2512.3,3.98031]
[1727805697945,23.50962,2512.8,2512.3,3.98031]
[1727805698242,19.53,2512.8,2512.3,0.796076]
[1727805698413,19.53,2512.8,2512.7,3.97978]
[1727805699198,19.53,2512.8,2512.6,3.97992]
[1727805699538,19.53,2512.8,2512.6,3.97985]
[1727805699839,1.6526,2513.3,2513.0,3.97917]
[1727805700245,1.6526,2513.3,2513.2,3.97899]
[1727805700593,1.6526,2513.3,2513.1,7.95821]
[1727805700843,1.6526,2513.3,2513.1,3.97907]
[1727805701146,1.6526,2513.3,2513.2,3.97899]
[1727805702337,1.6526,2513.3,2513.1,3.97913]
[1727805702551,1.6526,2513.3,2513.1,3.97905]
[1727805702711,1.6526,2513.3,2513.1,3.97902]
[1727805703429,1.6526,2513.3,2513.2,3.97899]
[1727805703644,1.6526,2513.3,2512.5,3.0]
[1727805703961,3.97933,2513.0,2512.5,3.97999]
[1727805704111,3.97915,2513.1,2512.6,3.97985]
[1727805704310,3.97935,2513.0,2512.5,3.97999]
[1727805704550,3.97915,2513.1,2512.6,3.97991]
[1727805704936,5.63153,2513.3,2512.8,3.97954]
[1727805705239,5.63153,2513.3,2512.5,3.98009]
[1727805705240,4.91642,2513.0,2512.5,3.98009]
[1727805705461,0.9371,2513.0,2512.6,3.97983]
[1727805706249,5.805934,2513.0,2512.4,7.96029]
[1727805706607,5.805934,2513.0,2512.5,3.98009]
[1727805707014,0.869,2512.7,2512.1,3.98059]
[1727805707256,3.98007,2512.6,2512.0,3.9808]
[1727805707558,3.98003,2512.6,2512.0,4.79099]
[1727805707910,4.84884,2512.7,2512.1,3.9807]
[1727805708116,3.97995,2512.6,2512.1,3.9807]
[1727805709226,3.97995,2512.6,2512.0,4.79096]
[1727805709431,3.97995,2512.6,2512.0,0.81019]
[1727805709670,3.98012,2512.5,2511.9,3.98104]
[1727805709854,23.51012,2512.5,2511.9,3.98104]
[1727805710167,19.53,2512.5,2512.0,3.9808]
[1727805710478,0.8665,2512.2,2511.7,3.98126]
[1727805710666,0.8665,2512.2,2511.8,3.98111]
[1727805710826,0.8665,2512.2,2511.7,3.98126]
[1727805710827,0.8665,2512.2,2511.9,3.98104]
[1727805711381,0.8665,2512.2,2511.9,3.98102]
[1727805711545,0.8665,2512.2,2512.0,3.98079]
[1727805711894,0.8665,2512.2,2512.0,3.98084]
[1727805712386,0.8665,2512.2,2511.9,3.98102]
[1727805712535,0.8665,2512.2,2511.8,3.9812]
[1727805712731,0.8665,2512.2,2511.5,4.12168]
[1727805712962,3.981,2512.0,2511.5,3.98158]
[1727805713147,3.98106,2511.9,2511.2,3.1401]
[1727805713381,2.90615,2512.2,2511.2,3.1401]
[1727805713382,3.98146,2511.7,2511.2,3.98215]
[1727805713536,0.8913,2511.8,2511.3,3.98198]
[1727805713889,0.8913,2511.8,2510.9,0.1401]
[1727805713890,0.8913,2511.8,2511.1,3.98221]
[1727805714169,0.8913,2511.8,2511.3,3.98191]
[1727805714170,4.87251,2511.8,2511.3,3.98191]
[1727805714329,4.87251,2511.8,2511.3,7.96381]
[1727805714532,0.8913,2511.8,2511.4,3.98181]
[1727805715137,4.87251,2511.8,2511.3,3.98199]
[1727805715684,4.87251,2511.8,2511.4,3.98182]
[1727805715980,19.53,2512.0,2511.5,3.9816]
[1727805716136,19.53,2512.0,2510.9,0.1401]
[1727805716137,3.98105,2511.9,2511.3,3.98188]
[1727805716337,3.98128,2511.8,2511.3,3.98188]
[1727805716538,3.98144,2511.7,2511.1,3.98222]
[1727805716767,0.9319,2511.6,2511.0,3.98238]
[1727805716949,0.9319,2511.6,2511.1,3.98219]
[1727805717337,0.9319,2511.6,2511.2,3.98213]
[1727805717577,0.9319,2511.6,2511.1,3.98219]
[1727805717888,0.9319,2511.6,2511.3,3.98199]
[1727805718172,0.9319,2511.6,2511.1,3.98219]
[1727805718397,0.9319,2511.6,2511.1,7.96441]
[1727805718536,0.9319,2511.6,2510.7,3.0]
[1727805718537,0.9319,2511.6,2511.0,3.0]
[1727805718735,0.9319,2511.6,2511.1,3.98231]
[1727805718736,4.91357,2511.6,2511.1,3.98231]
[1727805719143,3.98168,2511.5,2511.0,3.0]
[1727805719473,3.98201,2511.3,2511.0,3.0]
[1727805719678,3.98201,2511.3,2510.8,3.0]
[1727805719846,3.98201,2511.3,2511.0,3.0]
[1727805720035,3.98201,2511.3,2510.8,3.98276]
[1727805720236,3.98219,2511.2,2510.7,3.98289]
[1727805720437,3.98219,2511.2,2510.5,3.98326]
[1727805720438,3.98248,2511.0,2510.5,3.98326]
[1727805720688,0.9089,2510.9,2509.6,3.98455]
[1727805721047,25.11409199,2511.2,2509.7,0.398455]
[1727805721048,0.9089,2510.5,2509.7,0.398455]
[1727805721323,0.9089,2510.5,2509.9,3.98418]
[1727805721324,3.98345,2510.4,2509.9,3.98418]
[1727805721537,0.9089,2510.5,2509.9,3.98413]
[1727805721681,0.9089,2510.5,2509.9,4.78894486]
[1727805721882,0.9089,2510.5,2510.1,3.9839]
[1727805722078,19.53,2510.8,2509.6,0.0153]
[1727805722284,0.8671,2510.9,2510.3,3.98344]
[1727805722525,0.8671,2510.9,2510.5,3.98325]
[1727805722828,0.8671,2510.9,2510.5,4.381575]
[1727805723000,0.8881,2511.3,2510.8,3.98279]
[1727805723183,0.8881,2511.3,2510.6,3.98308]
[1727805723184,0.8881,2511.3,2510.5,7.381525]
[1727805723538,3.98176,2511.5,2511.0,3.98245]
[1727805723833,3.98176,2511.5,2510.7,3.0]
[1727805723834,0.9114,2511.1,2510.7,3.0]
[1727805724339,3.98283,2510.8,2510.3,3.99888]
[1727805724480,19.53,2511.2,2510.4,0.47954714]
[1727805724683,19.53,2511.2,2510.7,3.0]
[1727805724886,19.53,2511.2,2510.9,3.9826]
[1727805725115,4.89324,2511.4,2510.8,3.98278]
[1727805725116,0.9114,2511.4,2510.8,3.98278]
[1727805725384,0.9114,2511.4,2510.7,3.0]
[1727805725385,0.9114,2511.4,2511.1,3.98221]
[1727805725826,0.9114,2511.4,2511.0,3.98235]
[1727805726192,19.53,2512.0,2511.0,3.98235]
[1727805726193,3.98114,2511.9,2511.3,3.982]
[1727805726524,9.56389199,2512.7,2511.1,3.98224]
[1727805726525,3.9814,2511.7,2511.1,3.98224]
[1727805726685,3.9818,2511.5,2511.1,0.07963615]
[1727805726887,3.9818,2511.5,2511.0,0.55]
[1727805727082,3.9818,2511.5,2511.0,1.0746058]
[1727805727486,3.98167,2511.6,2511.0,1.0746058]
[1727805727883,3.98167,2511.6,2511.0,5.0570758]
[1727805728091,3.98168,2511.5,2511.0,5.0570758]
[1727805728411,8.83691,2511.8,2511.2,3.98213]
[1727805728586,4.8556,2511.8,2511.2,0.50567358]
[1727805728783,3.98177,2511.5,2511.0,3.55]
[1727805729002,3.98168,2511.6,2511.0,3.55]
[1727805729198,3.98179,2511.5,2511.0,3.0]
[1727805729403,3.98168,2511.6,2511.0,3.0]
[1727805729404,3.98193,2511.4,2511.0,3.0]
[1727805729629,3.98193,2511.4,2510.8,6.99802]
[1727805729794,0.8544,2511.3,2510.8,6.98275]
[1727805729997,0.8544,2511.3,2510.8,3.0]
[1727805730225,0.8544,2511.3,2510.7,3.98293]
[1727805730226,3.98216,2511.2,2510.7,3.0]
[1727805730455,0.8544,2511.3,2510.8,3.98271]
[1727805730740,0.485598,2511.6,2511.2,7.96415]
[1727805730741,0.8962,2511.6,2511.2,7.96415]
[1727805730891,3.98169,2511.5,2511.0,3.99762]
[1727805731093,0.8962,2511.6,2511.2,3.98215]
[1727805731332,19.53,2511.7,2511.4,3.98172]
[1727805731632,0.9106,2511.8,2511.5,3.98168]
[1727805731835,3.98044,2512.3,2511.6,3.9815]
[1727805732137,0.8456,2512.2,2511.6,6.98143]
[1727805732294,0.8456,2512.2,2511.5,3.0]
[1727805732295,3.98113,2511.9,2511.5,3.0]
[1727805732495,0.8456,2512.2,2511.3,0.5653]
[1727805732734,4.82714,2511.6,2511.1,0.55]
[1727805732947,5.708,2511.6,2511.1,0.55]
[1727805733093,4.82714,2511.6,2511.1,0.55]
[1727805733398,0.8456,2511.6,2511.0,3.0]
[1727805733597,3.98176,2511.5,2511.0,3.98245]
[1727805733801,0.8456,2511.6,2511.1,3.98224]
[1727805734206,4.8272,2511.6,2511.0,3.98245]
[1727805734410,0.8456,2511.6,2511.2,3.98214]
[1727805734605,0.8456,2511.6,2511.2,3.98206]
[1727805736109,0.8456,2511.6,2511.3,3.98189]
[1727805736750,19.53,2511.9,2511.0,0.798043]
[1727805737045,0.8981,2512.2,2512.0,3.9808]
[1727805737210,0.8981,2512.2,2512.0,3.98078]
[1727805737412,0.8981,2512.2,2512.1,3.98073]
[1727805737711,0.8379,2512.7,2512.1,0.796152]
[1727805737915,0.8379,2512.7,2512.2,3.98045]
[1727805738113,0.8379,2512.7,2511.9,0.0153]
[1727805738314,0.8379,2512.7,2512.3,3.98033]
[1727805738524,4.81769,2512.7,2512.2,3.98053]
[1727805738744,0.8379,2512.7,2512.5,3.98009]
[1727805739038,0.8921,2513.2,2513.0,3.97928]
[1727805739244,0.8921,2513.2,2512.8,3.97954]
[1727805739450,0.8921,2513.2,2512.9,3.97937]
[1727805739804,0.8921,2513.2,2513.0,3.97915]
[1727805740017,1.6526,2513.3,2512.9,3.97937]
[1727805740349,1.6526,2513.3,2513.1,3.97912]
[1727805741258,1.6526,2513.3,2513.2,3.97899]
[1727805741403,1.6526,2513.3,2513.1,3.97912]
[1727805741905,1.6526,2513.3,2513.1,3.97906]
[1727805742299,1.6526,2513.3,2513.1,3.97914]
[1727805742913,1.6526,2513.3,2513.2,3.97899]
[1727805743680,1.6526,2513.3,2513.2,6.97899]
[1727805744145,1.22048705,2513.3,2513.2,6.99429]
[1727805744353,0.75157174,2513.3,2513.2,6.99429]
[1727805744507,0.8242,2514.4,2513.6,3.0]
[1727805744706,0.8242,2514.4,2513.9,3.97776]
[1727805744908,0.8242,2514.4,2513.8,3.97803]
[1727805744909,0.8242,2514.7,2514.3,3.97714]
[1727805745348,0.8242,2514.7,2514.3,3.97711]
[1727805745558,0.8242,2514.7,2514.2,3.97728]
[1727805745846,1.5758,2514.7,2514.2,3.97728]
[1727805746049,1.5758,2514.7,2514.4,3.97707]
[1727805746217,1.5758,2514.7,2514.2,3.97728]
[1727805746417,5.55245,2514.7,2514.2,3.97728]
[1727805746636,1.5758,2514.7,2514.3,3.97724]
[1727805746844,1.5758,2514.7,2514.2,3.97728]
[1727805747344,1.5758,2514.7,2514.3,3.97716]
[1727805747572,5.5525,2514.7,2514.2,3.97728]
[1727805748129,2.528688,2514.7,2514.0,6.97762]
[1727805748332,3.97728,2514.3,2513.9,3.0]
[1727805748880,5.55248,2514.7,2514.0,3.97771]
[1727805749090,0.7516,2514.7,2514.1,0.697771]
[1727805749252,0.7516,2514.7,2514.6,3.97677]
[1727805749454,0.7516,2514.7,2514.6,7.05629326]
[1727805749977,0.7516,2514.7,2514.6,7.52677]
[1727805750178,0.7516,2514.7,2514.6,8.677138]
[1727805752582,0.24661875,2514.7,2514.6,8.677138]
[1727805753577,4.88546,2516.0,2514.6,4.700368]
[1727805753578,3.97488,2515.8,2514.6,4.700368]
[1727805753795,3.97488,2515.8,2515.0,6.97604]
[1727805753969,3.97519,2515.6,2515.2,3.0]
[1727805754295,0.8608,2515.7,2514.6,4.700368]
[1727805754582,0.8608,2515.7,2513.1,2.32375499]
[1727805754583,3.97531,2515.6,2514.8,3.97631]
[1727805754742,3.97558,2515.4,2514.8,3.97631]
[1727805754944,4.83654,2515.3,2514.7,7.95308]
[1727805755245,4.83654,2515.3,2514.8,3.97643]
[1727805755246,0.8608,2515.3,2514.8,3.97643]
[1727805755784,4.83647,2515.3,2514.7,3.97653]
[1727805755965,0.8608,2515.3,2514.7,3.97653]
[1727805756187,0.8608,2515.3,2514.9,3.97617]
[1727805756338,0.8608,2515.3,2514.9,7.95238]
[1727805756535,0.8608,2515.3,2514.9,3.97617]
[1727805756984,0.8608,2515.3,2515.1,3.97595]
[1727805757156,0.8608,2515.3,2514.8,3.0]
[1727805757356,0.8608,2515.3,2514.7,3.97649]
[1727805757357,0.8608,2515.3,2514.7,3.0]
[1727805757573,0.8608,2515.3,2514.9,3.9762]
[1727805757785,0.8608,2515.3,2515.0,3.97609]
[1727805758088,0.8608,2515.3,2514.9,7.95241]
[1727805758242,0.8608,2515.3,2514.9,3.9762]
[1727805758962,0.8608,2515.3,2515.0,3.97611]
[1727805759776,0.8608,2515.3,2514.9,3.9762]
[1727805759987,0.8608,2515.3,2515.0,3.97613]
[1727805760159,0.8608,2515.3,2514.4,3.0]
[1727805760160,0.8608,2515.3,2515.1,3.97596]
[1727805760357,0.8608,2515.3,2514.9,3.97618]
[1727805760558,0.8608,2515.3,2515.1,3.97593]
[1727805760787,20.409,2515.6,2514.9,0.697618]
[1727805760986,20.409,2515.6,2515.3,3.97554]
[1727805761285,20.409,2515.6,2515.2,3.97572]
[1727805761286,0.879,2515.6,2515.4,3.9755]
[1727805761874,0.879,2515.6,2515.4,3.97543]
[1727805762082,4.85419,2515.6,2514.9,4.673788]
[1727805762265,0.510079,2515.5,2515.0,3.97613]
[1727805762451,3.97551,2515.4,2514.8,6.97634]
[1727805762658,3.97551,2515.4,2514.9,3.97628]
[1727805763154,4.80849,2515.4,2514.9,3.97628]
[1727805763362,4.80849,2515.4,2514.9,7.95247]
[1727805763564,3.97584,2515.2,2514.8,3.0]
[1727805763762,3.97584,2515.2,2514.1,0.697771]
[1727805763950,3.97584,2515.2,2514.2,3.97736]
[1727805763951,0.8467,2515.1,2514.2,3.97736]
[1727805764151,4.82308,2514.9,2514.4,3.977]
[1727805764364,4.82308,2514.9,2514.1,0.697771]
[1727805764365,3.97646,2514.8,2514.2,3.9774]
[1727805764594,3.97646,2514.8,2514.3,3.97722]
[1727805764799,1.726632,2514.9,2514.4,3.97708]
[1727805765091,5.702952,2514.9,2514.4,3.97708]
[1727805765295,4.9443832,2514.8,2514.2,3.97727]
[1727805765468,3.97677,2514.6,2514.2,3.97727]
[1727805765666,0.8467,2514.7,2514.3,3.97722]
[1727805765852,0.8467,2514.7,2514.2,3.97727]
[1727805766056,3.97678,2514.6,2514.1,3.97756]
[1727805766271,3.97678,2514.6,2514.1,3.97748]
[1727805766475,4.88101,2514.5,2513.9,3.97787]
[1727805766773,4.88101,2514.5,2513.4,3.97856]
[1727805766774,0.904,2514.5,2514.3,3.97715]
[1727805767317,0.904,2514.5,2514.3,3.97714]
[1727805768108,0.904,2514.5,2514.1,3.97743]
[1727805768317,0.904,2514.5,2514.2,3.97738]
[1727805768826,0.904,2514.5,2513.8,3.0]
[1727805768975,3.9771,2514.4,2513.9,3.97784]
[1727805769299,0.8667,2513.9,2513.1,1.095849]
[1727805769612,0.8667,2513.9,2513.4,3.97859]
[1727805769613,4.8446,2513.9,2513.4,3.97859]
[1727805769820,3.97823,2513.7,2513.3,3.97874]
[1727805770189,0.908,2513.5,2512.9,3.97937]
[1727805770379,3.97894,2513.3,2512.7,3.97967]
[1727805770572,2.441694,2513.2,2512.8,3.97959]
[1727805770772,23.50894,2513.3,2512.8,3.97959]
[1727805771076,23.50894,2513.3,2512.7,3.97967]
[1727805771077,19.53,2513.3,2512.9,3.97944]
[1727805771409,19.53,2513.3,2512.7,3.97968]
[1727805771611,3.979,2513.2,2512.7,3.97967]
[1727805771792,0.8891,2513.1,2512.6,3.0]
[1727805771975,4.86828,2513.1,2512.5,3.97995]
[1727805772377,0.8891,2513.1,2512.5,3.97995]
[1727805772623,0.8891,2513.1,2512.1,1.22790599]
[1727805772921,0.8828,2512.6,2512.1,5.20849599]
[1727805773077,3.98019,2512.5,2512.1,1.22790599]
[1727805773417,3.98046,2512.3,2512.1,1.22790599]
[1727805773623,3.98043,2512.3,2512.1,1.22790599]
[1727805773774,4.84247,2512.2,2512.1,1.22790599]
[1727805773977,0.8619,2512.2,2512.1,1.22790599]
[1727805774198,1.1085,2512.2,2512.1,1.22790599]
[1727805774607,1.1085,2512.2,2512.1,5.49480473]
[1727805774608,0.2466,2512.2,2512.1,5.49480473]
[1727805775498,0.2466,2512.2,2512.1,8.49480473]
[1727805775979,0.2466,2512.2,2512.1,4.51407473]
[1727805776179,0.2466,2512.2,2512.1,8.49480473]
[1727805777780,0.2466,2512.2,2512.1,4.51407473]
[1727805778013,4.22717,2512.2,2512.1,1.22790599]
[1727805778476,5.06297,2512.2,2512.1,1.22790599]
[1727805778679,5.06297,2512.2,2511.7,3.98134]
[1727805778909,1.0824,2512.2,2511.7,4.379474]
[1727805779123,1.0824,2512.2,2511.7,0.398134]
[1727805779292,0.2466,2512.2,2511.7,0.398134]
[1727805779494,0.2466,2512.2,2512.1,6.98073]
[1727805780113,0.2466,2512.2,2512.1,7.06021127]
[1727805780686,0.2466,2512.2,2512.1,6.98073]
[1727805783127,1.0842,2512.2,2512.0,3.0]
[1727805783428,1.0842,2512.2,2511.9,3.0]
[1727805783633,1.0842,2512.2,2512.1,6.98073]
[1727805783634,0.2466,2512.2,2512.1,6.98073]
[1727805783799,0.2466,2512.2,2512.1,3.0]
[1727805784000,0.2466,2512.2,2512.1,6.98073]
[1727805784725,0.2466,2512.2,2511.9,0.698111]
[1727805784726,0.2466,2512.2,2511.8,3.98109]
[1727805784923,4.65,2512.2,2511.7,3.98135]
[1727805785132,4.65,2512.2,2511.8,3.9812]
[1727805785133,0.66931,2512.2,2511.8,3.9812]
[1727805785321,4.6499,2512.2,2511.6,7.9628]
[1727805785530,3.98123,2511.8,2511.3,3.98191]
[1727805785694,0.8968,2511.7,2511.5,3.98156]
[1727805785894,19.53,2512.0,2511.6,3.98152]
[1727805786099,20.4126,2512.0,2511.7,3.98133]
[1727805786732,20.4126,2512.0,2511.8,3.98109]
[1727805786947,20.4126,2512.0,2511.9,3.98105]
[1727805786948,19.53,2512.0,2511.9,3.98105]
[1727805787145,0.2466,2512.2,2511.9,3.98105]
[1727805787429,0.2466,2512.2,2511.8,0.796242]
[1727805787430,0.2466,2512.2,2511.8,6.98119]
[1727805787991,0.2466,2512.2,2511.8,3.0]
[1727805788191,0.2466,2512.2,2511.3,3.0]
[1727805788445,4.87465,2512.4,2511.8,3.9811]
[1727805788446,4.87456,2512.4,2511.8,3.9811]
[1727805788608,3.98043,2512.3,2511.8,3.9811]
[1727805788922,0.8943,2512.4,2511.6,3.0]
[1727805789119,0.8943,2512.4,2511.9,3.98103]
[1727805789337,4.87457,2512.4,2512.0,3.98087]
[1727805789647,4.87457,2512.4,2511.9,3.98103]
[1727805790226,3.98044,2512.3,2511.9,3.98102]
[1727805790606,0.8943,2512.4,2512.0,3.98081]
[1727805790819,4.8746,2512.4,2511.9,3.98102]
[1727805791022,0.8943,2512.4,2512.1,3.98071]
[1727805791257,0.8943,2512.4,2512.2,3.9805]
[1727805791741,0.8943,2512.4,2512.1,3.98071]
[1727805791955,0.8943,2512.4,2512.2,3.9805]
[1727805792104,0.8532,2512.7,2512.3,3.98041]
[1727805792294,0.8532,2512.7,2512.4,3.98016]
[1727805792502,0.8532,2512.7,2512.0,3.98087]
[1727805792503,0.8532,2512.7,2512.5,3.98001]
[1727805792707,0.8544,2513.1,2512.8,3.9795]
[1727805792941,0.8544,2513.1,2512.9,3.97935]
[1727805793453,0.8544,2513.1,2512.7,3.97965]
[1727805793617,0.8544,2513.1,2512.9,3.97944]
[1727805794006,0.8544,2513.1,2513.0,3.9793]
[1727805794206,0.8544,2513.1,2512.9,3.97944]
[1727805794754,0.8544,2513.1,2512.9,3.97935]
[1727805795261,24.41846278,2513.4,2513.1,3.97906]
[1727805795262,20.3592,2513.4,2513.1,3.97906]
[1727805795406,20.3592,2513.4,2513.2,3.97897]
[1727805795407,0.8292,2513.4,2513.2,3.97897]
[1727805796356,0.8292,2513.4,2513.0,3.97921]
[1727805797052,0.8292,2513.4,2513.1,3.97913]
[1727805797206,0.8292,2513.4,2513.0,7.95843]
[1727805797411,0.8292,2513.4,2512.9,3.0]
[1727805797412,3.262973,2513.4,2512.9,3.0]
[1727805797838,7.241723,2513.4,2512.9,3.0]
[1727805798037,7.241723,2513.4,2512.5,0.433401]
[1727805798038,3.97886,2513.3,2512.8,3.9796]
[1727805798252,7.241723,2513.4,2512.9,6.97946]
[1727805798451,0.8292,2513.4,2513.0,3.97929]
[1727805798610,0.8292,2513.4,2513.0,3.97922]
[1727805798808,0.8292,2513.4,2513.0,3.97921]
[1727805799117,0.8292,2513.4,2513.0,7.95841]
[1727805799346,0.8292,2513.4,2513.0,3.9792]
[1727805799510,0.8292,2513.4,2513.1,3.97899]
[1727805799711,0.8969,2514.0,2513.1,4.095819]
[1727805799961,0.8969,2514.0,2512.7,10.07510507]
[1727805799962,0.8969,2514.0,2513.2,3.0]
[1727805800172,0.8969,2514.0,2513.8,3.97796]
[1727805800377,0.8969,2514.0,2513.8,7.95592]
[1727805800688,0.8969,2514.0,2513.3,6.97872]
[1727805800689,4.87465,2514.0,2513.6,3.97826]
[1727805800981,0.8969,2514.0,2513.6,3.97825]
[1727805801138,0.8969,2514.0,2513.7,3.97815]
[1727805801464,3.97734,2514.3,2513.7,3.97815]
[1727805801465,19.53,2514.3,2513.9,3.97788]
[1727805801674,3.97675,2514.7,2513.7,0.561595]
[1727805801675,0.8478,2514.8,2514.2,3.9774]
[1727805801871,4.82437,2514.8,2514.2,3.9774]
[1727805802033,0.482437,2514.7,2514.3,3.97715]
[1727805802239,0.482437,2514.7,2514.3,3.97713]
[1727805802649,4.459077,2514.7,2514.2,3.9774]
[1727805802833,4.459077,2514.7,2514.0,3.97764]
[1727805802834,3.97687,2514.6,2514.1,3.0]
[1727805803160,3.97687,2514.6,2514.2,3.97739]
[1727805803161,3.97678,2514.6,2514.2,3.97739]
[1727805803547,3.97703,2514.5,2514.1,3.0]
[1727805803751,3.97703,2514.5,2514.0,7.95519]
[1727805803982,3.97703,2514.5,2514.0,3.97759]
[1727805804644,3.97706,2514.5,2514.0,3.97759]
[1727805805682,3.97706,2514.5,2514.0,3.0]
[1727805805995,3.97706,2514.5,2513.7,0.561595]
[1727805805996,3.97749,2514.2,2513.7,3.97811]
[1727805806141,0.8826,2514.4,2513.6,1.6378]
[1727805806478,0.8826,2514.4,2514.0,3.9776]
[1727805807096,0.8826,2514.4,2514.2,3.97739]
[1727805807257,3.97726,2514.3,2513.9,3.0]
[1727805807457,6.50109082,2514.3,2513.9,3.0]
[1727805807785,4.88645,2513.9,2513.6,1.6378]
[1727805807946,0.9085,2513.9,2513.6,1.6378]
[1727805809103,3.97819,2513.7,2513.6,1.6378]